Cogmind - Beta 14 @@@ ROGUE MODE // 2024.12.30 @ 21:45:56 Player: Tereza Result: Destroyed by AG-56494 with Assembled Focal Cannon Performance ------------- Evolutions (3) 1500 Regions Visited (10) 2000 Robots Destroyed (181) 905 Value Destroyed (5665) 5665 Prototype IDs (7) 140 Alien Tech Used (0) 0 Bonus (586) 586 TOTAL SCORE: 10796 Bonus ------- High Alert Combat Kills 2 Follower Combat Kills 74 Met Imprinter 300 Destroyed Z-Imprinter 1000 Friendly Fire -790 Cogmind --------- Core Integrity 0/700 Matter 155/300 Energy 100/100 System Corruption 0% Temperature Cool (6) Movement Treading (385) Ox3 Location -7/Deep Caves Parts ------- > --- POWER (1) -------- (None) > --- PROPULSION (4) --- Advanced Treads > --- UTILITY (6) ------ Huge Storage Unit Visual Processing Unit > --- WEAPON (2) ------- (None) > --- INVENTORY (25) --- Micro Nuclear Core Medium Treads Medium Treads Wheel Armored Huge Wheel High-capacity Matter Pod (200) Armor Integrity Analyzer Improved Medium Armor Plating Improved Medium Armor Plating Hacking Suite Hacking Suite System Shield High-powered Tractor Beam Hacking Drone Bay Plasma Cannon Heavy Plasma Cannon Missile Launcher Heavy Rocket Launcher Heavy Missile Launcher Scatter Rocket Array Plasma Cutter RU-N14's Throwing Claymores Molecular Deconstructor Peak State ------------ > --- POWER ------------ Improved Deuterium Engine > --- PROPULSION ------- Advanced Treads Medium Treads Medium Treads Medium Treads > --- UTILITY ---------- Improved Heat Sink Huge Storage Unit Visual Processing Unit Improved Medium Armor Plating Layered Medium Armor Plating Hacking Suite > --- WEAPON ----------- Gauss Cannon Scatter Rocket Array > --- INVENTORY -------- Micro Nuclear Core Medium Treads Medium Treads Wheel Armored Huge Wheel High-capacity Matter Pod Armor Integrity Analyzer Improved Medium Armor Plating Improved Medium Armor Plating Hacking Suite Hacking Suite System Shield High-powered Tractor Beam Hacking Drone Bay Plasma Cannon Heavy Plasma Cannon Gauss Cannon Missile Launcher Heavy Rocket Launcher Heavy Missile Launcher Plasma Cutter RU-N14's Throwing Claymores Molecular Deconstructor [Rating: 57] Favorites ----------- Power Improved Deuterium Engine Engine Improved Deuterium Engine Power Core Nuclear Core Propulsion Medium Treads Treads Medium Treads Wheel Wheel Utility Huge Storage Unit Device Improved Heat Sink Storage Huge Storage Unit Processor Visual Processing Unit Hackware Hacking Suite Protection Improved Medium Armor Plating Weapon Gauss Cannon Ballistic Gun Gauss Rifle Ballistic Cannon Gauss Cannon Launcher Scatter Rocket Array Special Weapon Plasma Cutter Special Melee Weapon Datajack Build | -11 -10 -10 -9 -9 -8 -7 -7 -7 -7 -7 ------- Run | Yrd Mat Min Mat Sto Mat Fac Low Low Zio Dee Slots Evolved 6 | . . . 2 . 2 2 . . . . Power . | . . . . . . . . . . . Propulsion 2 | . . . . . 1 1 . . . . Utility 4 | . . . 2 . 1 1 . . . . Weapon . | . . . . . . . . . . . Parts Attached 107 | 6 7 . 22 8 29 17 10 1 3 4 Power 9 | 1 . . 2 . 4 1 1 . . . Engine 7 | 1 . . . . 4 1 1 . . . Core 2 | . . . 2 . . . . . . . Reactor . | . . . . . . . . . . . Propulsion 32 | 2 2 . 8 1 9 6 4 . . . Treads 31 | 2 1 . 8 1 9 6 4 . . . Leg . | . . . . . . . . . . . Wheel 1 | . 1 . . . . . . . . . Hover . | . . . . . . . . . . . Flight . | . . . . . . . . . . . Utility 30 | 1 4 . 4 3 7 7 3 1 . . Device 5 | . . . . . 1 1 3 . . . Storage 6 | 1 3 . . . 2 . . . . . Processor 3 | . . . 1 1 1 . . . . . Hackware 3 | . . . . 1 1 1 . . . . Protection 13 | . 1 . 3 1 2 5 . 1 . . Artifact . | . . . . . . . . . . . Weapon 36 | 2 1 . 8 4 9 3 2 . 3 4 Energy Gun . | . . . . . . . . . . . Energy Cannon . | . . . . . . . . . . . Ballistic Gun 11 | 2 1 . 3 1 3 1 . . . . Ballistic Cannon 13 | . . . 3 2 3 1 1 . 1 2 Launcher 9 | . . . 1 1 3 1 1 . 1 1 Special Weapon 2 | . . . . . . . . . 1 1 Impact Weapon . | . . . . . . . . . . . Slashing Weapon . | . . . . . . . . . . . Piercing Weapon . | . . . . . . . . . . . Special Melee Weapon 1 | . . . 1 . . . . . . . Unidentified Prototypes 4 | . . . 1 1 1 . . . . 1 Parts Lost 43 | . 2 . 5 3 12 7 5 . . 9 Power 5 | . 1 . 1 . 1 1 . . . 1 Propulsion 17 | . 1 . 2 . 6 2 3 . . 3 Utility 14 | . . . 1 2 2 3 2 . . 4 Weapon 7 | . . . 1 1 3 1 . . . 1 Highest Loss Streak 9 | . 1 . 1 2 7 4 3 . . 9 To Critical Strikes 1 | . . . . . 1 . . . . . Average Slot Usage (%) 92 | . 89 85 87 94 94 91 94 96 99 98 Engine 5 | . 6 . . . 7 6 7 7 7 6 Core 2 | . . . 5 11 1 . . . . . Treads 25 | . 21 14 20 22 26 29 26 30 30 29 Wheel 1 | . 5 14 1 . . . . . . . Device 2 | . . . . . 1 . 7 7 7 7 Storage 9 | . 14 14 11 11 9 7 7 7 7 7 Processor 6 | . . . 5 11 7 7 7 7 7 7 Hackware 6 | . . . . 6 14 12 7 7 7 7 Protection 13 | . 12 14 22 9 8 9 13 11 15 14 Ballistic Gun 10 | . 27 28 12 8 7 12 3 . . . Ballistic Cannon 8 | . . . 9 12 10 2 10 15 14 11 Peak Build Rating 57 | 6 8 10 23 27 37 51 52 54 55 57 Average Rating 32 | 4 7 9 18 23 32 45 49 52 54 55 On Entrance 28 | . 6 8 10 23 26 36 51 49 54 54 Naked Turns . | . . . . . . . . . . . Heaviest Build 121 | 14 90 85 102 100 114 118 120 120 120 121 Greatest Support 106 | 40 40 10 43 43 66 96 106 106 106 106 Greatest Overweight (x) 9 | 4 8 8 9 2 5 1 1 1 1 3 Average Overweight (x) 1 | 1 4 8 2 2 1 . 1 1 1 1 Largest Inventory Capacity 25 | 8 25 25 25 25 25 25 25 25 25 25 Average Capacity 24 | 7 23 25 25 25 25 25 25 25 25 25 Most Carried 25 | 4 22 25 25 25 25 25 25 25 25 25 Average Carried 23 | 2 14 24 24 24 23 24 24 24 24 24 Final Capacity 25 | 8 25 25 25 25 25 25 25 25 25 25 Final Carried 25 | 4 22 25 24 25 25 25 23 25 25 25 Class Distribution -------------------- 75% | Mutant 20% | Hacker-Mutant 4% | Scavenger-Mutant Dominant Class ---------------- Mutant | -10/Materials Mutant | -10/Mines Mutant | -9/Materials Mutant | -9/Storage Hacker-Mutant | -8/Materials Hacker-Mutant | -7/Factory Mutant | -7/Lower Caves Mutant | -7/Lower Caves Mutant | -7/Zion Mutant | -7/Deep Caves Resources | -11 -10 -10 -9 -9 -8 -7 -7 -7 -7 -7 ----------- Run | Yrd Mat Min Mat Sto Mat Fac Low Low Zio Dee Matter Collected 5811 | 201 843 49 929 431 1493 986 381 339 25 134 Remotely . | . . . . . . . . . . . Salvage Created 5786 | . 983 . 1319 766 1266 1135 266 39 . 12 Parts 357 | . 54 . 101 59 79 49 14 1 . . Haulers Intercepted 16 | . 2 . 5 4 5 . . . . . Recyclers Shooed 12 | . 4 . 3 2 2 1 . . . . Parts Field Recycled . | . . . . . . . . . . . Retrieved Matter . | . . . . . . . . . . . Parts Self-Destructed 7 | . . . . . . . 6 1 . . Prevented . | . . . . . . . . . . . Kills | -11 -10 -10 -9 -9 -8 -7 -7 -7 -7 -7 ------- Run | Yrd Mat Min Mat Sto Mat Fac Low Low Zio Dee Combat Hostiles Destroyed 133 | . 15 . 32 14 34 21 11 3 . 3 Guns 57 | . 15 . 18 5 7 11 1 . . . Cannons 57 | . . . 11 9 20 8 3 3 . 3 AOE 19 | . . . 3 . 7 2 7 . . . Classes Destroyed 20 | . 7 . 3 . 3 3 1 . . 3 Worker 5 | . . . 1 . 1 3 . . . . Builder 4 | . 2 . . . 1 1 . . . . Hauler 16 | . 2 . 5 4 5 . . . . . Recycler 6 | . 3 . . . 2 1 . . . . Mechanic 1 | . . . . . . 1 . . . . Operator 6 | . 1 . 3 1 1 . . . . . Watcher 11 | . 3 . 4 1 3 . . . . . Swarmer 24 | . 3 . 7 . 8 . 3 3 . . Grunt 65 | . 12 . 17 10 12 14 . . . . Brawler 3 | . . . 1 . 2 . . . . . Duelist 2 | . . . . . 1 1 . . . . Sentry 20 | . . . 7 4 8 . 1 . . . Specialist 5 | . . . . . 2 . 3 . . . Hunter 5 | . . . . . . 3 2 . . . Programmer 4 | . . . . . . 3 1 . . . Heavy 1 | . . . . . 1 . . . . . Behemoth 1 | . . . . . . . 1 . . . Assembled 3 | . . . . . . . . . . 3 Fireman 1 | . . . . . . . . . . 1 Mutant 1 | . . . . . . . . . . 1 Best Kill Streak 10 | . 4 . 9 4 9 10 9 3 . 2 Combat Bots Only 9 | . 3 . 6 4 7 8 9 3 . 2 Max Kills in Single Turn 4 | . 1 . 2 2 3 2 4 1 . 2 Gunslinging . | . . . . . . . . . . . Exploded 4 | . . . 1 . 3 2 4 . . . Melee . | . . . . . . . . . . . Uniques/NPCs Destroyed 1 | . . . . . . . . . . 1 Z-Imprinter (-7/Deep Caves) Combat | -11 -10 -10 -9 -9 -8 -7 -7 -7 -7 -7 -------- Run | Yrd Mat Min Mat Sto Mat Fac Low Low Zio Dee Hostile Shots Fired 924 | . 73 . 212 69 231 171 95 17 . 56 Missed 249 | . 22 . 55 21 60 47 28 5 . 11 Damage Taken 10911 | . 581 . 1868 653 2892 2042 1156 184 . 1535 Core 1386 | . 71 . 170 142 282 193 10 . . 518 Absorbed by Shields . | . . . . . . . . . . . Redirected to Shielding 50 | . 18 . 28 4 . . . . . . Regen/Repaired (Parts) 521 | . 89 . 291 . 141 . . . . . Core Remaining (%) 60 | 100 . 71 . 22 48 . . . . . Volleys Fired 503 | . 97 . 104 42 134 73 21 6 . 26 Largest 2 | . 2 . 2 2 2 2 2 2 . 2 Hottest 98 | . 40 . 58 78 83 76 98 96 . 98 Shots Fired 957 | . 194 . 210 82 245 146 36 13 . 31 Gun 550 | . 194 . 125 37 67 124 3 . . . Cannon 392 | . . . 82 45 171 21 31 13 . 29 Launcher 15 | . . . 3 . 7 1 2 . . 2 Special . | . . . . . . . . . . . Kinetic 942 | . 194 . 207 82 238 145 34 13 . 29 Thermal . | . . . . . . . . . . . Explosive 15 | . . . 3 . 7 1 2 . . 2 Electromagnetic . | . . . . . . . . . . . Robot Hit Streak 15 | . 15 . 9 15 13 14 7 1 . 4 Robot Miss Streak 21 | . 6 . 4 2 4 4 5 2 . 21 Penetration Max 1 | . . . . . . 1 . . . . Secondary Targets 4 | . 2 . . . . 2 . . . . Max Gunslinging Chain 1 | . 1 . . . . 1 . . . . Shots Hit Robots 606 | . 115 . 134 56 166 93 26 5 . 11 Core Hits 315 | . 44 . 70 24 77 52 31 3 . 14 Critical Kills 3 | . . . 2 . . 1 . . . . Critical Parts Destroyed 3 | . 1 . . . . 2 . . . . Critical Strikes 26 | . 1 . 5 1 8 7 4 . . . Destroy 6 | . 1 . 2 . . 3 . . . . Blast 20 | . . . 3 1 8 4 4 . . . Melee Attacks 2 | . . . 2 . . . . . . . Impact . | . . . . . . . . . . . Slashing . | . . . . . . . . . . . Piercing . | . . . . . . . . . . . Sneak Attacks 2 | . . . 2 . . . . . . . Combat Hostiles . | . . . . . . . . . . . Follow-up Attacks . | . . . . . . . . . . . Damage Inflicted 14987 | . 1504 . 2361 1035 4605 2583 1520 184 . 1195 Guns 5778 | . 1504 . 1112 469 912 1738 43 . . . Cannons 5609 | . . . 807 566 2501 532 672 184 . 347 Explosions 3600 | . . . 442 . 1192 313 805 . . 848 Melee . | . . . . . . . . . . . Ramming . | . . . . . . . . . . . Kinetic 11387 | . 1504 . 1919 1035 3413 2270 715 184 . 347 Thermal 590 | . . . . . . . . . . 590 Explosive 3010 | . . . 442 . 1192 313 805 . . 258 Electromagnetic . | . . . . . . . . . . . Impact . | . . . . . . . . . . . Slashing . | . . . . . . . . . . . Piercing . | . . . . . . . . . . . Highest Corruption 3 | . 1 1 2 3 . 3 2 2 2 . Average Corruption 1 | . 1 1 2 2 . 1 1 2 2 . Corruption Purged 5 | . . . . . . 5 . . . . Corruption Blocked . | . . . . . . . . . . . Effects 88 | . 2 . 35 24 . 9 11 6 1 . Message Errors 19 | . 1 . 6 5 . 3 2 2 . . Matter Fused 26 | . . . 8 10 . 2 4 2 . . Heat Flow Errors 11 | . 1 . 6 3 . 1 . . . . Energy Discharges 10 | . . . 4 2 . 2 1 1 . . Parts Rejected 2 | . . . 1 . . 1 . . . . Data Loss (minor) 10 | . . . 4 3 . . 2 . 1 . Data Loss (major) 5 | . . . 3 1 . . 1 . . . Misfires 5 | . . . 3 . . . 1 1 . . Overload Shots . | . . . . . . . . . . . Overflow Damage 305 | . . . 12 5 166 11 . . . 111 Projectiles 125 | . . . . 5 65 11 . . . 44 Explosions 180 | . . . 12 . 101 . . . . 67 Melee . | . . . . . . . . . . . Knockbacks 53 | . . . 6 4 29 7 1 2 . 4 Impact . | . . . . . . . . . . . Kinetic 47 | . . . 6 4 24 6 1 2 . 4 Secondary 6 | . . . . . 5 1 . . . . Self-Inflicted Damage 84 | . . . . . 29 55 . . . . Shots 3 | . . . . . 2 1 . . . . Rammed . | . . . . . . . . . . . Targets Rammed . | . . . . . . . . . . . Kicked . | . . . . . . . . . . . Crushed . | . . . . . . . . . . . Highest Temperature 318 | . 83 . 278 195 318 278 216 . . 17 Average Temperature 62 | . 27 . 56 59 68 62 70 . . 8 Received Heat Transfer 3252 | . 309 . 702 309 1008 693 18 . . 213 Effects 5 | . . . 1 . 1 . 3 . . . Interference 4 | . . . 1 . . . 3 . . . Short Circuit 1 | . . . . . 1 . . . . . Siege Activations . | . . . . . . . . . . . Robots Corrupted . | . . . . . . . . . . . Combat Hostiles . | . . . . . . . . . . . Parts Fried . | . . . . . . . . . . . Impact Corruptions 1 | . . . . . 1 . . . . . Robots Melted . | . . . . . . . . . . . Combat Hostiles . | . . . . . . . . . . . Parts Melted 1 | . . . 1 . . . . . . . Heat Transferred . | . . . . . . . . . . . Parts Sabotaged . | . . . . . . . . . . . Parts Stolen . | . . . . . . . . . . . Parts Stripped . | . . . . . . . . . . . Power Chain Reactions . | . . . . . . . . . . . Alert | -11 -10 -10 -9 -9 -8 -7 -7 -7 -7 -7 ------- Run | Yrd Mat Min Mat Sto Mat Fac Low Low Zio Dee Peak Influence 423 | . 168 15 423 385 374 374 . . . . Initial 163 | . . . 5 162 68 163 . . . . Average 166 | . 60 8 218 258 154 170 . . . . Maximum Alert Level 2 | . . . 2 1 1 1 . . . . Low Security (%) 62 | 100 100 100 45 23 70 59 . . . . Level 1 37 | . . . 51 76 29 40 . . . . Level 2 . | . . . 3 . . . . . . . Level 3 . | . . . . . . . . . . . Level 4 . | . . . . . . . . . . . Level 5 . | . . . . . . . . . . . High Security . | . . . . . . . . . . . Max Security . | . . . . . . . . . . . Squads Dispatched 25 | . 2 1 6 4 4 8 . . . . Investigation 11 | . 1 1 2 3 . 4 . . . . Extermination 2 | . . . . . . 2 . . . . Reinforcement 11 | . 1 . 4 1 3 2 . . . . Assault . | . . . . . . . . . . . Garrison 1 | . . . . . 1 . . . . . Intercept . | . . . . . . . . . . . Searches Triggered . | . . . . . . . . . . . Construction Impeded . | . . . . . . . . . . . Haulers Reinforced 1 | . . . . . . 1 . . . . Active Scanning Responses . | . . . . . . . . . . . Cargo Convoy Interrupts . | . . . . . . . . . . . Stealth | -11 -10 -10 -9 -9 -8 -7 -7 -7 -7 -7 --------- Run | Yrd Mat Min Mat Sto Mat Fac Low Low Zio Dee Distress Signals 13 | . 3 . 2 3 2 3 . . . . Communications Jammed . | . . . . . . . . . . . Distress Signals . | . . . . . . . . . . . Times Spotted 210 | . 23 2 56 24 49 33 10 6 . 7 Peak Tracking Total 8 | . 4 3 6 5 6 6 8 3 . 3 Tactical Retreats 12 | . . 1 6 . 2 2 . 1 . . Traps | -11 -10 -10 -9 -9 -8 -7 -7 -7 -7 -7 ------- Run | Yrd Mat Min Mat Sto Mat Fac Low Low Zio Dee Traps Triggered 9 | . 2 . 3 1 2 1 . . . . Indirectly . | . . . . . . . . . . . Trap Hack Attempts 8 | . . . 8 . . . . . . . Triggered . | . . . . . . . . . . . Disarmed . | . . . . . . . . . . . Reprogrammed 2 | . . . 2 . . . . . . . Reused 1 | . . . 1 . . . . . . . Traps Extracted . | . . . . . . . . . . . Installed . | . . . . . . . . . . . Triggered 1 | . . . 1 . . . . . . . Machines | -11 -10 -10 -9 -9 -8 -7 -7 -7 -7 -7 ---------- Run | Yrd Mat Min Mat Sto Mat Fac Low Low Zio Dee Machines Disabled 22 | . 2 . 2 1 5 6 1 . 3 2 Max in Single Turn 2 | . 1 . 1 1 1 2 1 . 1 2 Garrison Access 2 | . . . . . 1 1 . . . . Machines Repaired . | . . . . . . . . . . . Machines Dismantled 3 | . . . . . . . . . 3 . Machines Sabotaged . | . . . . . . . . . . . Overloaded Fab Kills . | . . . . . . . . . . . Hacking | -11 -10 -10 -9 -9 -8 -7 -7 -7 -7 -7 --------- Run | Yrd Mat Min Mat Sto Mat Fac Low Low Zio Dee Machines Accessed 44 | . 7 1 7 7 11 9 . 2 . . Terminals 30 | . 6 . 5 7 8 4 . . . . Fabricators 3 | . . . . . . 3 . . . . Repair Stations 4 | . 1 . 2 . 1 . . . . . Recycling Units 1 | . . . . . . 1 . . . . Scanalyzers 1 | . . . . . 1 . . . . . Garrison Access 2 | . . . . . 1 1 . . . . Total Hacks 110 | . 17 1 23 14 28 19 . 8 . . Successful 59 | . 9 1 11 4 16 10 . 8 . . Failed 51 | . 8 . 12 10 12 9 . . . . Catastrophic 11 | . 3 . 3 3 . 2 . . . . Database Lockouts . | . . . . . . . . . . . Manual 38 | . 14 . 9 2 7 5 1 . . . Terminals 74 | . 15 . 16 14 21 8 . . . . Fabricators 8 | . . . . . . 8 . . . . Repair Stations 11 | . 2 . 7 . 2 . . . . . Recycling Units 2 | . . . . . . 2 . . . . Scanalyzers 2 | . . . . . 2 . . . . . Garrison Access 4 | . . . . . 3 1 . . . . Terminal Hacks 38 | . 7 1 6 4 10 2 . 8 . . Record 7 | . . . . . . . . 7 . . Part Schematic 1 | . . . . . . 1 . . . . Robot Analysis 7 | . 5 . 1 . 1 . . . . . Prototype ID Bank 1 | . . . . . 1 . . . . . Open Door 5 | . . 1 . 3 . . . 1 . . Level Access Points 1 | . . . . . 1 . . . . . Branch Access Points 2 | . . . 1 . . 1 . . . . Terminal Index 1 | . . . 1 . . . . . . . Alert Level 4 | . . . 1 1 2 . . . . . Unreport Threat 2 | . . . 1 . 1 . . . . . Locate Traps 3 | . 1 . 1 . 1 . . . . . Hauler Manifests 2 | . . . . . 2 . . . . . Registered Components 1 | . 1 . . . . . . . . . Zone Layout 1 | . . . . . 1 . . . . . Fabricator Hacks 6 | . . . . . . 6 . . . . Network Status 1 | . . . . . . 1 . . . . Load Schematic 3 | . . . . . . 3 . . . . Build 2 | . . . . . . 2 . . . . Repair Station Hacks 9 | . 2 . 5 . 2 . . . . . Scan Component 5 | . 1 . 3 . 1 . . . . . Repair 4 | . 1 . 2 . 1 . . . . . Recycling Unit Hacks . | . . . . . . . . . . . Scanalyzer 2 | . . . . . 2 . . . . . Insert Component 1 | . . . . . 1 . . . . . Analyze 1 | . . . . . 1 . . . . . Garrison Access Hacks 2 | . . . . . 1 1 . . . . Seal Access 2 | . . . . . 1 1 . . . . Unauthorized Hacks 2 | . . . . . 1 1 . . . . Terminals 1 | . . . . . 1 . . . . . Disrupt 1 | . . . . . 1 . . . . . Fabricators . | . . . . . . . . . . . Repair Stations . | . . . . . . . . . . . Recycling Units 1 | . . . . . . 1 . . . . Reject 1 | . . . . . . 1 . . . . Scanalyzers . | . . . . . . . . . . . Garrison Access . | . . . . . . . . . . . Data Cores Recovered . | . . . . . . . . . . . Used . | . . . . . . . . . . . Hacking Detections 34 | . 5 . 7 6 10 6 . . . . Full Trace Events 14 | . 3 . 4 3 . 4 . . . . Feedback Events 1 | . . . . 1 . . . . . . Corruption 1 | . . . . 1 . . . . . . Feedback Blocked . | . . . . . . . . . . . Robot Schematics Acquired 3 | . . . . . . . . . 3 . Robots Built . | . . . . . . . . . . . Authchips . | . . . . . . . . . . . Time . | . . . . . . . . . . . Total Robot Build Rating . | . . . . . . . . . . . Part Schematics Acquired 16 | . . . . . 1 1 . . 14 . Parts Built 4 | . . . . . . 4 . . . . Authchips . | . . . . . . . . . . . Time 168 | . . . . . . 168 . . . . Total Part Build Rating 16 | . . . . . . 16 . . . . Parts Repaired 4 | . 1 . 2 . 1 . . . . . Time 154 | . 26 . 96 . 32 . . . . . Parts Recycled . | . . . . . . . . . . . Recycled Matter . | . . . . . . . . . . . Retrieved Matter . | . . . . . . . . . . . Retrieved Components . | . . . . . . . . . . . Parts Scanalyzed 1 | . . . . . 1 . . . . . Part Schematics Acquired 1 | . . . . . 1 . . . . . Parts Damaged . | . . . . . . . . . . . Bothacking | -11 -10 -10 -9 -9 -8 -7 -7 -7 -7 -7 ------------ Run | Yrd Mat Min Mat Sto Mat Fac Low Low Zio Dee Used RIF Installer . | . . . . . . . . . . . Robots Hacked 1 | . . . 1 . . . . . . . Non-combat 1 | . . . 1 . . . . . . . Combat . | . . . . . . . . . . . Robot Hacks Applied 1 | . . . 1 . . . . . . . no_distress 1 | . . . 1 . . . . . . . Relay Couplers Released . | . . . . . . . . . . . Fabnet Peak Effective % . | . . . . . . . . . . . Robots Rewired . | . . . . . . . . . . . Allies Hacked . | . . . . . . . . . . . Hacks Repelled . | . . . . . . . . . . . Allies | -11 -10 -10 -9 -9 -8 -7 -7 -7 -7 -7 -------- Run | Yrd Mat Min Mat Sto Mat Fac Low Low Zio Dee Total Allies 4 | . . . . . . . . . 4 . Largest Group 4 | . . . . . . . . . 4 4 Highest-Rated Group 90 | . . . . . . . . . 90 90 Highest-Rated Ally 28 | . . . . . . . . . 28 28 Total Orders . | . . . . . . . . . . . Ally Attacks 50 | . . . . . . . . . . 50 Total Damage 461 | . . . . . . . . . . 461 Kills 8 | . . . . . . . . . . 8 Allies Corrupted . | . . . . . . . . . . . Allies Melted . | . . . . . . . . . . . Intel | -11 -10 -10 -9 -9 -8 -7 -7 -7 -7 -7 ------- Run | Yrd Mat Min Mat Sto Mat Fac Low Low Zio Dee Robot Analysis Total 6 | . 4 . 1 . 1 . . . . . Derelict Logs Recovered 6 | . . 2 . . . . 2 1 1 . Drone Launches . | . . . . . . . . . . . Drone Recoveries . | . . . . . . . . . . . Exploration | -11 -10 -10 -9 -9 -8 -7 -7 -7 -7 -7 ------------- Run | Yrd Mat Min Mat Sto Mat Fac Low Low Zio Dee Turns Passed 17636 | 69 2173 228 3416 1376 3129 2650 1172 777 1843 803 Spaces Moved 6073 | 35 776 112 949 376 1056 961 448 317 743 300 Core 18 | 18 . . . . . . . . . . Treads 5404 | 17 380 . 806 376 1056 961 448 317 743 300 Legs . | . . . . . . . . . . . Wheels 651 | . 396 112 143 . . . . . . . Hover . | . . . . . . . . . . . Flight . | . . . . . . . . . . . Fastest Speed 50 | 50 160 200 200 325 240 165 236 236 236 232 Average Speed 254 | 163 233 200 307 325 245 243 244 236 236 237 Slowest Speed 560 | 250 480 200 480 325 560 246 246 236 236 385 Overloaded Moves . | . . . . . . . . . . . Propulsion Burnouts . | . . . . . . . . . . . Robots Hopped . | . . . . . . . . . . . Cave-ins Triggered . | . . . . . . . . . . . Exploration Rate (%) 59 | 4 96 34 84 60 90 29 66 47 85 64 Regions Visited 10 Branch Regions 6 Pre-discovered Areas 2 | . . . . . . . . 1 1 . Known Exits Taken 4 | . . . 1 . 1 1 1 . . . Unknown Exits Taken 6 | 1 1 1 . 1 . . . 1 1 . Scrap Searched 7 | . . 1 . . . . 1 1 4 . Spaces Dug 1 | . . . . . 1 . . . . . Terrain Destroyed 249 | . . . 15 1 50 48 58 . . 77 Melee . | . . . . . . . . . . . Projectile 25 | . . . . 1 6 4 3 . . 11 AOE 223 | . . . 15 . 44 43 55 . . 66 Terrain Rammed . | . . . . . . . . . . . Walls Destroyed . | . . . . . . . . . . . Machines Disabled . | . . . . . . . . . . . Actions | -11 -10 -10 -9 -9 -8 -7 -7 -7 -7 -7 --------- Run | Yrd Mat Min Mat Sto Mat Fac Low Low Zio Dee Total 7290 | 44 942 119 1267 461 1362 1136 487 335 780 357 Wait 361 | . 45 . 125 18 85 54 . 9 . 25 Move 6063 | 34 775 111 948 375 1055 960 447 316 742 300 Hop . | . . . . . . . . . . . Pick Up 121 | 4 17 5 27 8 31 18 5 3 3 . Fast Attach 35 | 6 3 . 8 5 5 6 . . 2 . Attach 37 | . 2 . 4 1 15 8 5 1 . 1 Detach 8 | . 1 . . 1 4 1 . . . 1 Swap 35 | . 2 . 10 2 9 3 5 . 1 3 Drop 90 | . . 3 31 9 24 13 4 . 5 1 Fire 503 | . 97 . 104 42 134 73 21 6 . 26 Melee 2 | . . . 2 . . . . . . . Ram . | . . . . . . . . . . . Kick . | . . . . . . . . . . . Crush . | . . . . . . . . . . . Escape Stasis . | . . . . . . . . . . . Rewire . | . . . . . . . . . . . Trap 8 | . . . 8 . . . . . . . Miscellaneous 27 | . . . . . . . . . 27 . Route ------- -11/Scrapyard -10/Materials (discovered 4 exits: *Mat x2 / *Min x2) -10/Mines -9/Materials (discovered 4 exits: *Mat x2 / *Min / *Sto) -9/Storage -8/Materials (discovered 3 exits: *Fac x3) -7/Factory (discovered 4 exits: [*Fac x2] / *Low x2) -7/Lower Caves -7/Lower Caves -7/Zion (discovered 2 exits: [*Dee] / [*Pro]) -7/Deep Caves History --------- Turn | Location | Event 23 | -11/Scrapyard | Discovered new exit (range 16) 70 | -11/Scrapyard | Entered Materials 301 | -10/Materials | Build established: Mutant 441 | -10/Materials | Discovered new exit (range 9) 838 | -10/Materials | Discovered new exit (range 15) 882 | -10/Materials | Discovered new exit (range 13) 1780 | -10/Materials | Repaired Assault Rifle 1917 | -10/Materials | Discovered new exit (range 11) 2243 | -10/Materials | Entered Mines 2255 | -10/Mines | Learned 2 Materials zone layouts 2259 | -10/Mines | Learned Materials emergency access door positions 2292 | -10/Mines | Met a Derelict shopkeep closing up shop 2455 | -10/Mines | Discovered new exit (range 8) 2471 | -10/Mines | Entered Materials 2471 | -9/Materials | Evolved 2 slots: Utility x2 2472 | -9/Materials | Identified exit to Mines 3603 | -9/Materials | Discovered new exit (range 6) 3635 | -9/Materials | Discovered new exit (range 16) 3950 | -9/Materials | Identified exit to Storage 4798 | -9/Materials | Repaired Hrd. Light Armor Plating 5053 | -9/Materials | Repaired Broken Imp. Assault Rifle 5456 | -9/Materials | Discovered new exit (range 16) 5887 | -9/Materials | Entered Storage 5924 | -9/Storage | Core integrity fell below 50% 6844 | -9/Storage | Discovered new exit (range 15) 7016 | -9/Storage | Found Prototype Launcher 7016 | -9/Storage | Identified Scatter Rocket Array 7263 | -9/Storage | Entered Materials 7263 | -8/Materials | Evolved 2 slots: Propulsion x1, Utility x1 7740 | -8/Materials | Build established: Hacker-Mutant 8137 | -8/Materials | Repaired Hrd. Light Armor Plating 9084 | -8/Materials | Discovered new exit (range 5) 9317 | -8/Materials | Lost 7 parts (3n2u2w) 9541 | -8/Materials | Identified exit to Factory 9551 | -8/Materials | Build established: Mutant 9704 | -8/Materials | Destroyed 7 combat bots 9978 | -8/Materials | Build established: Scavenger-Mutant 10261 | -8/Materials | Garrison activated, responded to threat 10286 | -8/Materials | Core integrity fell below 50% 10392 | -8/Materials | Entered Factory 10392 | -7/Factory | Evolved 2 slots: Propulsion x1, Utility x1 10680 | -7/Factory | Build established: Hacker-Mutant 11073 | -7/Factory | Discovered new exit (range 17) 11281 | -7/Factory | Fabricated Med. Treads (x2) 11402 | -7/Factory | Identified exit to Lower Caves 12078 | -7/Factory | Fabricated Med. Treads (x2) 12117 | -7/Factory | Lost 4 parts (1n2u1w) 12138 | -7/Factory | Destroyed 8 combat bots 12378 | -7/Factory | Build established: Mutant 12931 | -7/Factory | Discovered new exit (range 10) 13042 | -7/Factory | Entered Lower Caves 13070 | -7/Lower Caves | Learned Factory trap positions 13309 | -7/Lower Caves | Encountered a Warlord checkpoint 13352 | -7/Lower Caves | Identified exit to Lower Caves 13512 | -7/Lower Caves | Acquired the password to a Derelict Tinkerer's latest research 13531 | -7/Lower Caves | Found Prototype Special Weapon 13633 | -7/Lower Caves | Spotted B-75 Beast 13662 | -7/Lower Caves | Caught by Unaware searching for contraband prototypes 13669 | -7/Lower Caves | Caught by Unaware searching for contraband prototypes 13705 | -7/Lower Caves | Destroyed 9 combat bots 13994 | -7/Lower Caves | Destroyed B-75 Beast 14020 | -7/Lower Caves | Lost 3 parts (1n2u) 14147 | -7/Lower Caves | Attracted the attention of an 0b10 checkpoint 14214 | -7/Lower Caves | Entered another Lower Caves area 14215 | -7/Lower Caves | Encountered a Warlord checkpoint 14682 | -7/Lower Caves | Learned Research trap positions 14682 | -7/Lower Caves | Learned Extension trap positions 14682 | -7/Lower Caves | Learned Research emergency access door positions 14682 | -7/Lower Caves | Learned Extension emergency access door positions 14932 | -7/Lower Caves | Discovered new exit (range 14) 14991 | -7/Lower Caves | Entered Zion 15062 | -7/Zion | System corruption cleaned by Quarantine Array 15243 | -7/Zion | Discovered new exit (range 12) 15683 | -7/Zion | Found Prototype Special Weapon 15875 | -7/Zion | Learned location of Armory (-3) 15910 | -7/Zion | Gained Derelict followers 15920 | -7/Zion | Learned Factory security intel 16255 | -7/Zion | Given the Hacking Drone Bay 16255 | -7/Zion | Found Prototype Device 16605 | -7/Zion | Met Imprinter 16824 | -7/Zion | Discovered new exit (range 5) 16827 | -7/Zion | Saw the warning signs outside the Deep Caves entrance 16834 | -7/Zion | Entered Deep Caves 16834 | -7/Deep Caves | Accompanied by 4 allies 17144 | -7/Deep Caves | Attacked by Z-Imprinter 17152 | -7/Deep Caves | Allies destroyed Z-Imprinter 17290 | -7/Deep Caves | Z-Facility disabled 17598 | -7/Deep Caves | Spotted AG-56494 17624 | -7/Deep Caves | Identified Molecular Deconstructor 17628 | -7/Deep Caves | Core integrity fell below 50% 17631 | -7/Deep Caves | Core integrity fell below 20% 17637 | -7/Deep Caves | Destroyed by AG-56494 with Assembled Focal Cannon Last Messages --------------- 17480_ as-67362 knocked back. 17480_ Slug penetrates as-67362. 17480_ as-67362 destroyed. 17605_ Slug penetrates AG-56494. 17605_ Destroyed Flamer. 17605_ AD-X65(M) knocked back. 17606_ Med. Treads destroyed. 17606_ Imp. Medium Armor Plating destroyed. 17607_ AG-56494: "DSI9AT1D G8OHIBQ29FWG 26R186 QD12WHW8W33 TDK1 81FTS" 17609_ Imp. Deuterium Engine destroyed. 17613_ Med. Treads destroyed. 17619_ AD-X65(M) destroyed. 17619_ Gauss Cannon destroyed. 17622_ Lyr. Medium Armor Plating destroyed. 17624_ Dropped Gauss Cannon. 17624_ Identified Molecular Deconstructor. 17627_ Med. Treads destroyed. 17634_ Hacking Suite destroyed. 17634_ Imp. Heat Sink destroyed. Map ----- +----------------------------------------------------+ | ????????????????????????????????????????????? | | ????????????????????????????????????????????? | | ????????????????????????????????????????????? | | ????????????????????????????????????????????? | | ????????????????????????????????????????????? | | ????????????????????????????????????????????? | | ????????????????????????????????????????????? | | ????????????????????????????????????????????? | | ?????????????????? # ???????????? ?????? | | ???????????????? ! #?????????? ?????? | | ????????????? ! #???????## ?????? | | ??????????? ??????## ????? | | ????????# !M #?????## ?????? | | ????????# ! b ! ##????# ?????? | | ????????# M #????# #?????? | | ????????# ! s #???## #?????? | | ????????# ! #??## #?????? | | ????????# g!= = #?## #?????? | | ?????????" ### ##????? | | ?????????" ## ##???# | | ?????????"h ! ## ##### | | ?????????" ! ### ## | | ????????"" = #?# | | ????????# h ! % ! #?# | | ????????" #?# | | ????????" % g@ ### | | ????????" G | | ????????""" ] # | | ????????" % ## | | ????????"" ######## | | ????????" #??????# | | ????????"" ##??????# ## | | ????????" # # #???????## #? | | ????????" #### ## ## ##????????## ##? | | ????????""" ##???# ?# ####??????????#####?? | | ?????????" ?????##?# #???????????????????? | | ?????????####??????????#????????????????????? | | | | | | | | | | | | | | | | | | | | | | | | | | | +----------------------------------------------------+ Best States ------------- Heat Dissipation 48 Energy Generation 16 Energy Capacity 290 Matter Stores 300 Matter Capacity 300 Sight Range 18 Robot Scan Range 15 Terrain Scan Density 10 Armor Coverage 750 Utility Shielding 33 Evasion (%) 40 Targeting Accuracy 12 Recoil Reduction 4 Offensive Hacking 20 Item Schematics ----------------- Scatter Rocket Array | -8/Materials | Scanalyzed Med. Treads | -7/Factory | Hacked Spear | -7/Zion | Archive Fission Core | -7/Zion | Archive Lgt. Fission Core | -7/Zion | Archive Flak Gun | -7/Zion | Archive Imp. Particle Charger | -7/Zion | Archive Shock Absorption System | -7/Zion | Archive Lrn. Tractor Beam | -7/Zion | Archive Adv. Shield Generator | -7/Zion | Archive Hrd. Heavy Armor Plating | -7/Zion | Archive Hvy. Machine Gun | -7/Zion | Archive Arc Projector | -7/Zion | Archive Imp. Field Recycling Unit | -7/Zion | Archive Adv. Signal Interpreter | -7/Zion | Archive Gauss Cannon | -7/Zion | Archive Robot Schematics ------------------ R-06 Scavenger | -7/Zion | Archive A-02 Transporter | -7/Zion | Archive K-01 Serf | -7/Zion | Archive Fabricated ------------ Med. Treads | x2 | -7/Factory Med. Treads | x2 | -7/Factory Alien Tech Used ----------------- None Achievements -------------- None Challenges ------------ None Game ------ Seed CatalystTeleporterSheargun Manual? 0 Play Time 01:09:52 Cumulative 148.9 hours Start 2024.12.30 @ 20:38:42 End 2024.12.30 @ 21:45:56 Sessions 1 Manual Loads 0 Difficulty Rogue Special Mode None Game No. 183 Rogue 183 Adventurer 0 Explorer 0 Win Type - Total 3 Types 3/0/0/0/0/0/0/0/0 Lore% 67 Gallery% 58 Achievement% 50 Wizard Run 0 Options --------- Layout 1 ASCII 0 Keyboard 1 Movement Numpad Keybinds 0 Fullscreen 1 Font 24/Smallcaps Map View 50x35 Zoom Use 0% Tactical HUD 1 Map Filters NONE Filters NONE Steam 1 RUN: f4e32e56-718b-455a-aa2a-03723f76097b